Workbook

Sheet Database 1
B1: اسم المورد | C1: الحد الادني | D1: سعر | E1: زنكات | F1: نوع الخدمه
A2: يوفي | B2: مورد 1 | C2: 0 | D2: 120 | E2: 0 | F2: يوفي
B3: مورد 2 | C3: 0 | D3: 120 | E3: 0 | F3: يوفي
B4: مورد 3 | C4: 0 | D4: 150 | E4: 0 | F4: يوفي
B5: مورد 4 | C5: 5000 | D5: 40 | E5: 175 | F5: طباعه
B6: مورد 5 | C6: 5000 | D6: 90 | E6: 625 | F6: طباعه
B7: مورد 6 | C7: 3000 | D7: 0.62 | E7: 105 | F7: طباعه
B8: مورد 7 | C8: 0 | D8: 0 | E8: 0 | F8: بدون
B9: مورد 8 | C9: 10000 | D9: 1.1 | E9: 500 | F9: طباعه
B10: مورد 9 | C10: 10000 | D10: 1.2 | E10: 500 | F10: طباعه
B11: مورد 10 | C11: 10000 | D11: 0.6 | E11: 225 | F11: طباعه
B12: مورد 11 | C12: 2000 | D12: 0.34 | E12: 110 | F12: طباعه
B13: مورد 12 | C13: 3000 | D13: 0.62 | E13: 110 | F13: طباعه
B14: مورد 13
B15: مورد 14

Sheet job Order
B1: 1 | C1: 2 | D1: 3 | E1: 4 | F1: 5 | G1: 6 | H1: 7 | I1: 8 | J1: 9 | K1: 10 | L1: 11 | M1: 12 | N1: 13 | O1: 14 | P1: 15 | Q1: 16 | R1: 17 | S1: 18 | T1: 19 | U1: 20 | V1: 21 | W1: 22 | X1: 23 | Y1: 24 | Z1: 25 | AA1: 26 | AB1: 27 | AC1: 28 | AD1: 29 | AE1: 30 | AF1: 31 | AG1: 32 | AH1: 33 | AI1: 34 | AJ1: 35 | AK1: 36 | AL1: 37 | AM1: 38 | AN1: 39 | AO1: 40 | AP1: 41 | AQ1: 42 | AR1: 43 | AS1: 44 | AT1: 45 | AU1: 46 | AV1: 47 | AW1: 48 | AX1: 49 | AY1: 50 | AZ1: 51 | BA1: 52 | BB1: 53 | BC1: 54 | BD1: 55 | BE1: 56 | BF1: 57 | BG1: 58 | BH1: 59 | BI1: 60 | BJ1: 61 | BK1: 62 | BL1: 63 | BM1: 64 | BN1: 65 | BO1: 66 | BP1: 67 | BQ1: 68 | BR1: 69 | BS1: 70
A3: مسلسل | B3: رقم امر الشغل | C3: التاريخ | D3: اسم المنتج | E3: اسم المصنع | F3: اسم العميل | G3: الكميه | H3: عدد الشرائح | I3: نوع الشيت | J3: البكر | K3: عرض البكر | L3: طول | M3: السنة الاولي | N3: نوع الخامة | O3: معامل السنه الاولي | P3: جرام الورق | Q3: الوزن المطلوب | R3: السنة الثانية | S3: نوع الخامة2 | T3: معامل السنه الثانيه | U3: جرام الورق3 | V3: الوزن المطلوب4 | W3: الدهر الاول | X3: جرام الورق5 | Y3: الوزن المطلوب6 | Z3: الدهر الثاني | AA3: جرام الورق7 | AB3: الوزن المطلوب8 | AC3: دوبلكس الطباعه | AD3: جرام الورق2 | AE3: الوزن المطلوب9 | AF3: اسم المطبعه | AG3: الوان الطباعه | AH3: عدد الاطقم | AI3: مورد طبقه الحمايه | AJ3: طبقة الحماية | AK3: تشطيب | AL3: عدد الدبوس | AM3: عدد الربطه | AN3: عدد الكرسي | AO3: ارتفاع الربط | AP3: رقم تليفون العميل | AQ3: مكان التسليم | AR3: نوع التحميل | AS3: مقاس البالته | AT3: ارتفاع البالته | AU3: مورد الفورمه | AV3: رقم الفورمه | AW3: طول10 | AX3: عرض | AY3: ارتفاع | AZ3: الطعم 1 | BA3: الكميه 1 | BB3: الطعم 2 | BC3: الكميه 2 | BD3: الطعم 3 | BE3: الكميه 3 | BF3: الطعم 4 | BG3: الكميه 4 | BH3: الطعم 5 | BI3: الكميه 5 | BJ3: الطعم 6 | BK3: الكميه 6 | BL3: الطعم 7 | BM3: الكميه 7 | BN3: الطعم 8 | BO3: الكميه 8 | BP3: السعر | BQ3: سعر الصرف | BR3: ملاحظات | BS3: ملاحظات امر التوريد | BT3: الفرق في الكميه | BW3: الكميه المنتجه | BX3: الكميه المسلمه | BY3: الفرق
A4: =IF(D4<>"",MAX($A$1:A3)+1,"") -> 1 | B4: 3628 | C4: 2019-12-14 | D4: محمد سمير - طقم بهارات الامبراطور كود 7002 | E4: =IFERROR(VLOOKUP($D4,table2,2,0),"") ->  | F4: =IFERROR(VLOOKUP($D4,table2,3,0),"") ->  | G4: 2000 | H4: =IFERROR(VLOOKUP($D4,table2,17,0)*$G4,"") ->  | I4: =IFERROR(VLOOKUP($D4,table2,18,0),"") ->  | J4: =IFERROR(VLOOKUP($D4,table2,14,0),"") ->  | K4: =IFERROR(VLOOKUP($D4,table2,15,0),"") ->  | L4: =IFERROR(VLOOKUP($D4,table2,16,0),"") ->  | M4: =IFERROR(VLOOKUP($D4,table2,19,0),"") ->  | N4: =IFERROR(VLOOKUP($D4,table2,20,0),"") ->  | O4: =IFERROR(VLOOKUP($M4,'Database 1'!#REF!,2,0),"") ->  | P4: 150 | Q4: =IFERROR(ROUNDUP(($H4*$K4*$L4*$O4*$P4)/1000,),"------") -> ------ | R4: =IFERROR(VLOOKUP($D4,table2,21,0),"") ->  | S4: =IFERROR(VLOOKUP($D4,table2,22,0),"") ->  | T4: =IFERROR(VLOOKUP($R4,'Database 1'!#REF!,2,0),"") ->  | V4: =IFERROR(ROUNDUP(($H4*$K4*$L4*$T4*$U4)/1000,),"------") -> ------ | W4: =IFERROR(VLOOKUP($D4,table2,23,0),"") ->  | X4: 150 | Y4: =IFERROR(ROUNDUP(($H4*$K4*$L4*$X4)/1000,),"------") -> ------ | Z4: =IFERROR(VLOOKUP($D4,table2,24,0),"") ->  | AB4: =IFERROR(ROUNDUP(($H4*$K4*$L4*$AA4)/1000,),"------") -> ------ | AC4: =IFERROR(VLOOKUP($D4,table2,25,0),"") ->  | AD4: 250 | AE4: =IFERROR(ROUNDUP(($H4*$K4*$L4*$AD4)/1000,),"------") -> ------ | AF4: =IFERROR(VLOOKUP($D4,table2,27,0),"") ->  | AG4: =IFERROR(VLOOKUP($D4,table2,28,0),"") ->  | AH4: =IFERROR(VLOOKUP($D4,table2,29,0),"") ->  | AI4: =IFERROR(VLOOKUP($D4,table2,30,0),"") ->  | AJ4: =IFERROR(VLOOKUP($D4,table2,31,0),"") ->  | AK4: =IFERROR(VLOOKUP($D4,table2,32,0),"") ->  | AL4: =IFERROR(VLOOKUP($D4,table2,33,0),"") ->  | AM4: =IFERROR(VLOOKUP($D4,table2,34,0),"") ->  | AN4: =IFERROR(VLOOKUP($D4,table2,35,0),"") ->  | AO4: =IFERROR(VLOOKUP($D4,table2,36,0),"") ->  | AP4: =IFERROR(VLOOKUP($D4,table2,37,0),"") ->  | AQ4: =IFERROR(VLOOKUP($D4,table2,38,0),"") ->  | AR4: =IFERROR(VLOOKUP($D4,table2,39,0),"") ->  | AS4: =IFERROR(VLOOKUP($D4,table2,40,0),"") ->  | AT4: =IFERROR(VLOOKUP($D4,table2,41,0),"") ->  | AU4: =IFERROR(VLOOKUP($D4,table2,5,0),"") ->  | AV4: =IFERROR(VLOOKUP($D4,table2,6,0),"") ->  | AW4: =IFERROR(VLOOKUP($D4,table2,11,0),"") ->  | AX4: =IFERROR(VLOOKUP($D4,table2,12,0),"") ->  | AY4: =IFERROR(VLOOKUP($D4,table2,13,0),"") ->  | BP4: =11.4-2.8 -> 8.6 | BQ4: 1 | BR4: =IFERROR(VLOOKUP($D4,table2,42,0),"") ->  | BT4: -83 | BW4: =IFERROR(VLOOKUP(Table4[[#This Row],[رقم امر الشغل]],table5,9,0),"") ->  | BX4: =IFERROR(VLOOKUP(Table4[[#This Row],[رقم امر الشغل]],table5,10,0),"") ->  | BY4: =IFERROR((BW4-BX4),"") -> 
A5: Total | BO5: =SUBTOTAL(103,[الكميه 8]) -> 0 | BW5: =IFERROR(VLOOKUP(Table4[[#This Row],[رقم امر الشغل]],table5,9,0),"") ->  | BX5: =IFERROR(VLOOKUP(Table4[[#This Row],[رقم امر الشغل]],table5,10,0),"") ->  | BY5: =IFERROR((BW5-BX5),"") -> 
BW6: =IFERROR(VLOOKUP(Table4[[#This Row],[رقم امر الشغل]],table5,9,0),"") ->  | BX6: =IFERROR(VLOOKUP(Table4[[#This Row],[رقم امر الشغل]],table5,10,0),"") -> 
BW7: =IFERROR(VLOOKUP(Table4[[#This Row],[رقم امر الشغل]],table5,9,0),"") ->  | BX7: =IFERROR(VLOOKUP(Table4[[#This Row],[رقم امر الشغل]],table5,10,0),"") -> 
BW8: =IFERROR(VLOOKUP(Table4[[#This Row],[رقم امر الشغل]],table5,9,0),"") ->  | BX8: =IFERROR(VLOOKUP(Table4[[#This Row],[رقم امر الشغل]],table5,10,0),"") -> 
BW9: =IFERROR(VLOOKUP(Table4[[#This Row],[رقم امر الشغل]],table5,9,0),"") ->  | BX9: =IFERROR(VLOOKUP(Table4[[#This Row],[رقم امر الشغل]],table5,10,0),"") -> 
BW10: =IFERROR(VLOOKUP(Table4[[#This Row],[رقم امر الشغل]],table5,9,0),"") ->  | BX10: =IFERROR(VLOOKUP(Table4[[#This Row],[رقم امر الشغل]],table5,10,0),"") -> 
BW11: =IFERROR(VLOOKUP(Table4[[#This Row],[رقم امر الشغل]],table5,9,0),"") ->  | BX11: =IFERROR(VLOOKUP(Table4[[#This Row],[رقم امر الشغل]],table5,10,0),"") -> 
BW12: =IFERROR(VLOOKUP(Table4[[#This Row],[رقم امر الشغل]],table5,9,0),"") ->  | BX12: =IFERROR(VLOOKUP(Table4[[#This Row],[رقم امر الشغل]],table5,10,0),"") -> 
BW13: =IFERROR(VLOOKUP(Table4[[#This Row],[رقم امر الشغل]],table5,9,0),"") ->  | BX13: =IFERROR(VLOOKUP(Table4[[#This Row],[رقم امر الشغل]],table5,10,0),"") -> 
BW14: =IFERROR(VLOOKUP(Table4[[#This Row],[رقم امر الشغل]],table5,9,0),"") ->  | BX14: =IFERROR(VLOOKUP(Table4[[#This Row],[رقم امر الشغل]],table5,10,0),"") -> 
BW15: =IFERROR(VLOOKUP(Table4[[#This Row],[رقم امر الشغل]],table5,9,0),"") ->  | BX15: =IFERROR(VLOOKUP(Table4[[#This Row],[رقم امر الشغل]],table5,10,0),"") -> 
BW16: =IFERROR(VLOOKUP(Table4[[#This Row],[رقم امر الشغل]],table5,9,0),"") ->  | BX16: =IFERROR(VLOOKUP(Table4[[#This Row],[رقم امر الشغل]],table5,10,0),"") -> 
BW17: =IFERROR(VLOOKUP(Table4[[#This Row],[رقم امر الشغل]],table5,9,0),"") ->  | BX17: =IFERROR(VLOOKUP(Table4[[#This Row],[رقم امر الشغل]],table5,10,0),"") -> 
BW18: =IFERROR(VLOOKUP(Table4[[#This Row],[رقم امر الشغل]],table5,9,0),"") ->  | BX18: =IFERROR(VLOOKUP(Table4[[#This Row],[رقم امر الشغل]],table5,10,0),"") -> 
BW19: =IFERROR(VLOOKUP(Table4[[#This Row],[رقم امر الشغل]],table5,9,0),"") ->  | BX19: =IFERROR(VLOOKUP(Table4[[#This Row],[رقم امر الشغل]],table5,10,0),"") -> 
BW20: =IFERROR(VLOOKUP(Table4[[#This Row],[رقم امر الشغل]],table5,9,0),"") ->  | BX20: =IFERROR(VLOOKUP(Table4[[#This Row],[رقم امر الشغل]],table5,10,0),"") -> 
BW21: =IFERROR(VLOOKUP(Table4[[#This Row],[رقم امر الشغل]],table5,9,0),"") ->  | BX21: =IFERROR(VLOOKUP(Table4[[#This Row],[رقم امر الشغل]],table5,10,0),"") -> 
BW22: =IFERROR(VLOOKUP(Table4[[#This Row],[رقم امر الشغل]],table5,9,0),"") ->  | BX22: =IFERROR(VLOOKUP(Table4[[#This Row],[رقم امر الشغل]],table5,10,0),"") -> 
BW23: =IFERROR(VLOOKUP(Table4[[#This Row],[رقم امر الشغل]],table5,9,0),"") ->  | BX23: =IFERROR(VLOOKUP(Table4[[#This Row],[رقم امر الشغل]],table5,10,0),"") -> 
BW24: =IFERROR(VLOOKUP(Table4[[#This Row],[رقم امر الشغل]],table5,9,0),"") ->  | BX24: =IFERROR(VLOOKUP(Table4[[#This Row],[رقم امر الشغل]],table5,10,0),"") -> 
BW25: =IFERROR(VLOOKUP(Table4[[#This Row],[رقم امر الشغل]],table5,9,0),"") ->  | BX25: =IFERROR(VLOOKUP(Table4[[#This Row],[رقم امر الشغل]],table5,10,0),"") -> 
BW26: =IFERROR(VLOOKUP(Table4[[#This Row],[رقم امر الشغل]],table5,9,0),"") ->  | BX26: =IFERROR(VLOOKUP(Table4[[#This Row],[رقم امر الشغل]],table5,10,0),"") ->  | BY26: =IFERROR((BW26-BX26),"") -> 
BW27: =IFERROR(VLOOKUP(Table4[[#This Row],[رقم امر الشغل]],table5,9,0),"") ->  | BX27: =IFERROR(VLOOKUP(Table4[[#This Row],[رقم امر الشغل]],table5,10,0),"") -> 
BW28: =IFERROR(VLOOKUP(Table4[[#This Row],[رقم امر الشغل]],table5,9,0),"") ->  | BX28: =IFERROR(VLOOKUP(Table4[[#This Row],[رقم امر الشغل]],table5,10,0),"") -> 
BW29: =IFERROR(VLOOKUP(Table4[[#This Row],[رقم امر الشغل]],table5,9,0),"") ->  | BX29: =IFERROR(VLOOKUP(Table4[[#This Row],[رقم امر الشغل]],table5,10,0),"") -> 
BW30: =IFERROR(VLOOKUP(Table4[[#This Row],[رقم امر الشغل]],table5,9,0),"") ->  | BX30: =IFERROR(VLOOKUP(Table4[[#This Row],[رقم امر الشغل]],table5,10,0),"") -> 
BW31: =IFERROR(VLOOKUP(Table4[[#This Row],[رقم امر الشغل]],table5,9,0),"") ->  | BX31: =IFERROR(VLOOKUP(Table4[[#This Row],[رقم امر الشغل]],table5,10,0),"") -> 
BW32: =IFERROR(VLOOKUP(Table4[[#This Row],[رقم امر الشغل]],table5,9,0),"") ->  | BX32: =IFERROR(VLOOKUP(Table4[[#This Row],[رقم امر الشغل]],table5,10,0),"") -> 
BW33: =IFERROR(VLOOKUP(Table4[[#This Row],[رقم امر الشغل]],table5,9,0),"") ->  | BX33: =IFERROR(VLOOKUP(Table4[[#This Row],[رقم امر الشغل]],table5,10,0),"") -> 
BW34: =IFERROR(VLOOKUP(Table4[[#This Row],[رقم امر الشغل]],table5,9,0),"") ->  | BX34: =IFERROR(VLOOKUP(Table4[[#This Row],[رقم امر الشغل]],table5,10,0),"") -> 
BW35: =IFERROR(VLOOKUP(Table4[[#This Row],[رقم امر الشغل]],table5,9,0),"") ->  | BX35: =IFERROR(VLOOKUP(Table4[[#This Row],[رقم امر الشغل]],table5,10,0),"") -> 
BW36: =IFERROR(VLOOKUP(Table4[[#This Row],[رقم امر الشغل]],table5,9,0),"") ->  | BX36: =IFERROR(VLOOKUP(Table4[[#This Row],[رقم امر الشغل]],table5,10,0),"") -> 
BW37: =IFERROR(VLOOKUP(Table4[[#This Row],[رقم امر الشغل]],table5,9,0),"") ->  | BX37: =IFERROR(VLOOKUP(Table4[[#This Row],[رقم امر الشغل]],table5,10,0),"") -> 
BW38: =IFERROR(VLOOKUP(Table4[[#This Row],[رقم امر الشغل]],table5,9,0),"") ->  | BX38: =IFERROR(VLOOKUP(Table4[[#This Row],[رقم امر الشغل]],table5,10,0),"") -> 
BW39: =IFERROR(VLOOKUP(Table4[[#This Row],[رقم امر الشغل]],table5,9,0),"") ->  | BX39: =IFERROR(VLOOKUP(Table4[[#This Row],[رقم امر الشغل]],table5,10,0),"") -> 
BW40: =IFERROR(VLOOKUP(Table4[[#This Row],[رقم امر الشغل]],table5,9,0),"") ->  | BX40: =IFERROR(VLOOKUP(Table4[[#This Row],[رقم امر الشغل]],table5,10,0),"") -> 
BW41: =IFERROR(VLOOKUP(Table4[[#This Row],[رقم امر الشغل]],table5,9,0),"") ->  | BX41: =IFERROR(VLOOKUP(Table4[[#This Row],[رقم امر الشغل]],table5,10,0),"") -> 
BW42: =IFERROR(VLOOKUP(Table4[[#This Row],[رقم امر الشغل]],table5,9,0),"") ->  | BX42: =IFERROR(VLOOKUP(Table4[[#This Row],[رقم امر الشغل]],table5,10,0),"") -> 
BW43: =IFERROR(VLOOKUP(Table4[[#This Row],[رقم امر الشغل]],table5,9,0),"") ->  | BX43: =IFERROR(VLOOKUP(Table4[[#This Row],[رقم امر الشغل]],table5,10,0),"") -> 
BW44: =IFERROR(VLOOKUP(Table4[[#This Row],[رقم امر الشغل]],table5,9,0),"") ->  | BX44: =IFERROR(VLOOKUP(Table4[[#This Row],[رقم امر الشغل]],table5,10,0),"") -> 
BW45: =IFERROR(VLOOKUP(Table4[[#This Row],[رقم امر الشغل]],table5,9,0),"") ->  | BX45: =IFERROR(VLOOKUP(Table4[[#This Row],[رقم امر الشغل]],table5,10,0),"") -> 
BW46: =IFERROR(VLOOKUP(Table4[[#This Row],[رقم امر الشغل]],table5,9,0),"") ->  | BX46: =IFERROR(VLOOKUP(Table4[[#This Row],[رقم امر الشغل]],table5,10,0),"") -> 
BW47: =IFERROR(VLOOKUP(Table4[[#This Row],[رقم امر الشغل]],table5,9,0),"") ->  | BX47: =IFERROR(VLOOKUP(Table4[[#This Row],[رقم امر الشغل]],table5,10,0),"") -> 
BW48: =IFERROR(VLOOKUP(Table4[[#This Row],[رقم امر الشغل]],table5,9,0),"") ->  | BX48: =IFERROR(VLOOKUP(Table4[[#This Row],[رقم امر الشغل]],table5,10,0),"") -> 
BW49: =IFERROR(VLOOKUP(Table4[[#This Row],[رقم امر الشغل]],table5,9,0),"") ->  | BX49: =IFERROR(VLOOKUP(Table4[[#This Row],[رقم امر الشغل]],table5,10,0),"") -> 
BW50: =IFERROR(VLOOKUP(Table4[[#This Row],[رقم امر الشغل]],table5,9,0),"") ->  | BX50: =IFERROR(VLOOKUP(Table4[[#This Row],[رقم امر الشغل]],table5,10,0),"") -> 
BW51: =IFERROR(VLOOKUP(Table4[[#This Row],[رقم امر الشغل]],table5,9,0),"") ->  | BX51: =IFERROR(VLOOKUP(Table4[[#This Row],[رقم امر الشغل]],table5,10,0),"") -> 
BW52: =IFERROR(VLOOKUP(Table4[[#This Row],[رقم امر الشغل]],table5,9,0),"") ->  | BX52: =IFERROR(VLOOKUP(Table4[[#This Row],[رقم امر الشغل]],table5,10,0),"") -> 
BW53: =IFERROR(VLOOKUP(Table4[[#This Row],[رقم امر الشغل]],table5,9,0),"") ->  | BX53: =IFERROR(VLOOKUP(Table4[[#This Row],[رقم امر الشغل]],table5,10,0),"") -> 
BW54: =IFERROR(VLOOKUP(Table4[[#This Row],[رقم امر الشغل]],table5,9,0),"") ->  | BX54: =IFERROR(VLOOKUP(Table4[[#This Row],[رقم امر الشغل]],table5,10,0),"") -> 
BW55: =IFERROR(VLOOKUP(Table4[[#This Row],[رقم امر الشغل]],table5,9,0),"") ->  | BX55: =IFERROR(VLOOKUP(Table4[[#This Row],[رقم امر الشغل]],table5,10,0),"") -> 
BW56: =IFERROR(VLOOKUP(Table4[[#This Row],[رقم امر الشغل]],table5,9,0),"") ->  | BX56: =IFERROR(VLOOKUP(Table4[[#This Row],[رقم امر الشغل]],table5,10,0),"") -> 
BW57: =IFERROR(VLOOKUP(Table4[[#This Row],[رقم امر الشغل]],table5,9,0),"") ->  | BX57: =IFERROR(VLOOKUP(Table4[[#This Row],[رقم امر الشغل]],table5,10,0),"") -> 
BW58: =IFERROR(VLOOKUP(Table4[[#This Row],[رقم امر الشغل]],table5,9,0),"") ->  | BX58: =IFERROR(VLOOKUP(Table4[[#This Row],[رقم امر الشغل]],table5,10,0),"") -> 
BW59: =IFERROR(VLOOKUP(Table4[[#This Row],[رقم امر الشغل]],table5,9,0),"") ->  | BX59: =IFERROR(VLOOKUP(Table4[[#This Row],[رقم امر الشغل]],table5,10,0),"") -> 
BW60: =IFERROR(VLOOKUP(Table4[[#This Row],[رقم امر الشغل]],table5,9,0),"") ->  | BX60: =IFERROR(VLOOKUP(Table4[[#This Row],[رقم امر الشغل]],table5,10,0),"") -> 
BW61: =IFERROR(VLOOKUP(Table4[[#This Row],[رقم امر الشغل]],table5,9,0),"") ->  | BX61: =IFERROR(VLOOKUP(Table4[[#This Row],[رقم امر الشغل]],table5,10,0),"") -> 
BW62: =IFERROR(VLOOKUP(Table4[[#This Row],[رقم امر الشغل]],table5,9,0),"") ->  | BX62: =IFERROR(VLOOKUP(Table4[[#This Row],[رقم امر الشغل]],table5,10,0),"") -> 
BW63: =IFERROR(VLOOKUP(Table4[[#This Row],[رقم امر الشغل]],table5,9,0),"") ->  | BX63: =IFERROR(VLOOKUP(Table4[[#This Row],[رقم امر الشغل]],table5,10,0),"") -> 
BW64: =IFERROR(VLOOKUP(Table4[[#This Row],[رقم امر الشغل]],table5,9,0),"") ->  | BX64: =IFERROR(VLOOKUP(Table4[[#This Row],[رقم امر الشغل]],table5,10,0),"") -> 
BW65: =IFERROR(VLOOKUP(Table4[[#This Row],[رقم امر الشغل]],table5,9,0),"") ->  | BX65: =IFERROR(VLOOKUP(Table4[[#This Row],[رقم امر الشغل]],table5,10,0),"") -> 
BW66: =IFERROR(VLOOKUP(Table4[[#This Row],[رقم امر الشغل]],table5,9,0),"") ->  | BX66: =IFERROR(VLOOKUP(Table4[[#This Row],[رقم امر الشغل]],table5,10,0),"") -> 
BW67: =IFERROR(VLOOKUP(Table4[[#This Row],[رقم امر الشغل]],table5,9,0),"") ->  | BX67: =IFERROR(VLOOKUP(Table4[[#This Row],[رقم امر الشغل]],table5,10,0),"") -> 
BW68: =IFERROR(VLOOKUP(Table4[[#This Row],[رقم امر الشغل]],table5,9,0),"") ->  | BX68: =IFERROR(VLOOKUP(Table4[[#This Row],[رقم امر الشغل]],table5,10,0),"") -> 
BW69: =IFERROR(VLOOKUP(Table4[[#This Row],[رقم امر الشغل]],table5,9,0),"") ->  | BX69: =IFERROR(VLOOKUP(Table4[[#This Row],[رقم امر الشغل]],table5,10,0),"") -> 
BW70: =IFERROR(VLOOKUP(Table4[[#This Row],[رقم امر الشغل]],table5,9,0),"") ->  | BX70: =IFERROR(VLOOKUP(Table4[[#This Row],[رقم امر الشغل]],table5,10,0),"") -> 
BW71: =IFERROR(VLOOKUP(Table4[[#This Row],[رقم امر الشغل]],table5,9,0),"") ->  | BX71: =IFERROR(VLOOKUP(Table4[[#This Row],[رقم امر الشغل]],table5,10,0),"") -> 
BW72: =IFERROR(VLOOKUP(Table4[[#This Row],[رقم امر الشغل]],table5,9,0),"") ->  | BX72: =IFERROR(VLOOKUP(Table4[[#This Row],[رقم امر الشغل]],table5,10,0),"") -> 
BW73: =IFERROR(VLOOKUP(Table4[[#This Row],[رقم امر الشغل]],table5,9,0),"") ->  | BX73: =IFERROR(VLOOKUP(Table4[[#This Row],[رقم امر الشغل]],table5,10,0),"") -> 
BW74: =IFERROR(VLOOKUP(Table4[[#This Row],[رقم امر الشغل]],table5,9,0),"") ->  | BX74: =IFERROR(VLOOKUP(Table4[[#This Row],[رقم امر الشغل]],table5,10,0),"") -> 
BW75: =IFERROR(VLOOKUP(Table4[[#This Row],[رقم امر الشغل]],table5,9,0),"") ->  | BX75: =IFERROR(VLOOKUP(Table4[[#This Row],[رقم امر الشغل]],table5,10,0),"") -> 
BW76: =IFERROR(VLOOKUP(Table4[[#This Row],[رقم امر الشغل]],table5,9,0),"") ->  | BX76: =IFERROR(VLOOKUP(Table4[[#This Row],[رقم امر الشغل]],table5,10,0),"") -> 
BW77: =IFERROR(VLOOKUP(Table4[[#This Row],[رقم امر الشغل]],table5,9,0),"") ->  | BX77: =IFERROR(VLOOKUP(Table4[[#This Row],[رقم امر الشغل]],table5,10,0),"") -> 
BW78: =IFERROR(VLOOKUP(Table4[[#This Row],[رقم امر الشغل]],table5,9,0),"") ->  | BX78: =IFERROR(VLOOKUP(Table4[[#This Row],[رقم امر الشغل]],table5,10,0),"") -> 
BW79: =IFERROR(VLOOKUP(Table4[[#This Row],[رقم امر الشغل]],table5,9,0),"") ->  | BX79: =IFERROR(VLOOKUP(Table4[[#This Row],[رقم امر الشغل]],table5,10,0),"") -> 
BW80: =IFERROR(VLOOKUP(Table4[[#This Row],[رقم امر الشغل]],table5,9,0),"") ->  | BX80: =IFERROR(VLOOKUP(Table4[[#This Row],[رقم امر الشغل]],table5,10,0),"") -> 
BW81: =IFERROR(VLOOKUP(Table4[[#This Row],[رقم امر الشغل]],table5,9,0),"") ->  | BX81: =IFERROR(VLOOKUP(Table4[[#This Row],[رقم امر الشغل]],table5,10,0),"") -> 
BW82: =IFERROR(VLOOKUP(Table4[[#This Row],[رقم امر الشغل]],table5,9,0),"") ->  | BX82: =IFERROR(VLOOKUP(Table4[[#This Row],[رقم امر الشغل]],table5,10,0),"") -> 
BW83: =IFERROR(VLOOKUP(Table4[[#This Row],[رقم امر الشغل]],table5,9,0),"") ->  | BX83: =IFERROR(VLOOKUP(Table4[[#This Row],[رقم امر الشغل]],table5,10,0),"") -> 
BW84: =IFERROR(VLOOKUP(Table4[[#This Row],[رقم امر الشغل]],table5,9,0),"") ->  | BX84: =IFERROR(VLOOKUP(Table4[[#This Row],[رقم امر الشغل]],table5,10,0),"") -> 
BW85: =IFERROR(VLOOKUP(Table4[[#This Row],[رقم امر الشغل]],table5,9,0),"") ->  | BX85: =IFERROR(VLOOKUP(Table4[[#This Row],[رقم امر الشغل]],table5,10,0),"") -> 
BW86: =IFERROR(VLOOKUP(Table4[[#This Row],[رقم امر الشغل]],table5,9,0),"") ->  | BX86: =IFERROR(VLOOKUP(Table4[[#This Row],[رقم امر الشغل]],table5,10,0),"") -> 
BW87: =IFERROR(VLOOKUP(Table4[[#This Row],[رقم امر الشغل]],table5,9,0),"") ->  | BX87: =IFERROR(VLOOKUP(Table4[[#This Row],[رقم امر الشغل]],table5,10,0),"") -> 
BW88: =IFERROR(VLOOKUP(Table4[[#This Row],[رقم امر الشغل]],table5,9,0),"") ->  | BX88: =IFERROR(VLOOKUP(Table4[[#This Row],[رقم امر الشغل]],table5,10,0),"") -> 
BW89: =IFERROR(VLOOKUP(Table4[[#This Row],[رقم امر الشغل]],table5,9,0),"") ->  | BX89: =IFERROR(VLOOKUP(Table4[[#This Row],[رقم امر الشغل]],table5,10,0),"") -> 
BW90: =IFERROR(VLOOKUP(Table4[[#This Row],[رقم امر الشغل]],table5,9,0),"") ->  | BX90: =IFERROR(VLOOKUP(Table4[[#This Row],[رقم امر الشغل]],table5,10,0),"") ->  | BY90: =IFERROR((BW90-BX90),"") -> 
BW91: =IFERROR(VLOOKUP(Table4[[#This Row],[رقم امر الشغل]],table5,9,0),"") ->  | BX91: =IFERROR(VLOOKUP(Table4[[#This Row],[رقم امر الشغل]],table5,10,0),"") -> 
BW92: =IFERROR(VLOOKUP(Table4[[#This Row],[رقم امر الشغل]],table5,9,0),"") ->  | BX92: =IFERROR(VLOOKUP(Table4[[#This Row],[رقم امر الشغل]],table5,10,0),"") -> 
BW93: =IFERROR(VLOOKUP(Table4[[#This Row],[رقم امر الشغل]],table5,9,0),"") ->  | BX93: =IFERROR(VLOOKUP(Table4[[#This Row],[رقم امر الشغل]],table5,10,0),"") -> 
BW94: =IFERROR(VLOOKUP(Table4[[#This Row],[رقم امر الشغل]],table5,9,0),"") ->  | BX94: =IFERROR(VLOOKUP(Table4[[#This Row],[رقم امر الشغل]],table5,10,0),"") -> 
BW95: =IFERROR(VLOOKUP(Table4[[#This Row],[رقم امر الشغل]],table5,9,0),"") ->  | BX95: =IFERROR(VLOOKUP(Table4[[#This Row],[رقم امر الشغل]],table5,10,0),"") -> 
BW96: =IFERROR(VLOOKUP(Table4[[#This Row],[رقم امر الشغل]],table5,9,0),"") ->  | BX96: =IFERROR(VLOOKUP(Table4[[#This Row],[رقم امر الشغل]],table5,10,0),"") -> 
BW97: =IFERROR(VLOOKUP(Table4[[#This Row],[رقم امر الشغل]],table5,9,0),"") ->  | BX97: =IFERROR(VLOOKUP(Table4[[#This Row],[رقم امر الشغل]],table5,10,0),"") -> 
BW98: =IFERROR(VLOOKUP(Table4[[#This Row],[رقم امر الشغل]],table5,9,0),"") ->  | BX98: =IFERROR(VLOOKUP(Table4[[#This Row],[رقم امر الشغل]],table5,10,0),"") -> 
BW99: =IFERROR(VLOOKUP(Table4[[#This Row],[رقم امر الشغل]],table5,9,0),"") ->  | BX99: =IFERROR(VLOOKUP(Table4[[#This Row],[رقم امر الشغل]],table5,10,0),"") -> 
BW100: =IFERROR(VLOOKUP(Table4[[#This Row],[رقم امر الشغل]],table5,9,0),"") ->  | BX100: =IFERROR(VLOOKUP(Table4[[#This Row],[رقم امر الشغل]],table5,10,0),"") -> 
BW101: =IFERROR(VLOOKUP(Table4[[#This Row],[رقم امر الشغل]],table5,9,0),"") ->  | BX101: =IFERROR(VLOOKUP(Table4[[#This Row],[رقم امر الشغل]],table5,10,0),"") -> 
BW102: =IFERROR(VLOOKUP(Table4[[#This Row],[رقم امر الشغل]],table5,9,0),"") ->  | BX102: =IFERROR(VLOOKUP(Table4[[#This Row],[رقم امر الشغل]],table5,10,0),"") -> 
BW103: =IFERROR(VLOOKUP(Table4[[#This Row],[رقم امر الشغل]],table5,9,0),"") ->  | BX103: =IFERROR(VLOOKUP(Table4[[#This Row],[رقم امر الشغل]],table5,10,0),"") -> 
BW104: =IFERROR(VLOOKUP(Table4[[#This Row],[رقم امر الشغل]],table5,9,0),"") ->  | BX104: =IFERROR(VLOOKUP(Table4[[#This Row],[رقم امر الشغل]],table5,10,0),"") -> 
BW105: =IFERROR(VLOOKUP(Table4[[#This Row],[رقم امر الشغل]],table5,9,0),"") ->  | BX105: =IFERROR(VLOOKUP(Table4[[#This Row],[رقم امر الشغل]],table5,10,0),"") -> 
BW106: =IFERROR(VLOOKUP(Table4[[#This Row],[رقم امر الشغل]],table5,9,0),"") ->  | BX106: =IFERROR(VLOOKUP(Table4[[#This Row],[رقم امر الشغل]],table5,10,0),"") -> 
BW107: =IFERROR(VLOOKUP(Table4[[#This Row],[رقم امر الشغل]],table5,9,0),"") ->  | BX107: =IFERROR(VLOOKUP(Table4[[#This Row],[رقم امر الشغل]],table5,10,0),"") -> 
BW108: =IFERROR(VLOOKUP(Table4[[#This Row],[رقم امر الشغل]],table5,9,0),"") ->  | BX108: =IFERROR(VLOOKUP(Table4[[#This Row],[رقم امر الشغل]],table5,10,0),"") -> 
BW109: =IFERROR(VLOOKUP(Table4[[#This Row],[رقم امر الشغل]],table5,9,0),"") ->  | BX109: =IFERROR(VLOOKUP(Table4[[#This Row],[رقم امر الشغل]],table5,10,0),"") -> 
BW110: =IFERROR(VLOOKUP(Table4[[#This Row],[رقم امر الشغل]],table5,9,0),"") ->  | BX110: =IFERROR(VLOOKUP(Table4[[#This Row],[رقم امر الشغل]],table5,10,0),"") -> 
BW111: =IFERROR(VLOOKUP(Table4[[#This Row],[رقم امر الشغل]],table5,9,0),"") ->  | BX111: =IFERROR(VLOOKUP(Table4[[#This Row],[رقم امر الشغل]],table5,10,0),"") -> 
BW112: =IFERROR(VLOOKUP(Table4[[#This Row],[رقم امر الشغل]],table5,9,0),"") ->  | BX112: =IFERROR(VLOOKUP(Table4[[#This Row],[رقم امر الشغل]],table5,10,0),"") -> 
BW113: =IFERROR(VLOOKUP(Table4[[#This Row],[رقم امر الشغل]],table5,9,0),"") ->  | BX113: =IFERROR(VLOOKUP(Table4[[#This Row],[رقم امر الشغل]],table5,10,0),"") -> 
BW114: =IFERROR(VLOOKUP(Table4[[#This Row],[رقم امر الشغل]],table5,9,0),"") ->  | BX114: =IFERROR(VLOOKUP(Table4[[#This Row],[رقم امر الشغل]],table5,10,0),"") -> 
BW115: =IFERROR(VLOOKUP(Table4[[#This Row],[رقم امر الشغل]],table5,9,0),"") ->  | BX115: =IFERROR(VLOOKUP(Table4[[#This Row],[رقم امر الشغل]],table5,10,0),"") -> 
BW116: =IFERROR(VLOOKUP(Table4[[#This Row],[رقم امر الشغل]],table5,9,0),"") ->  | BX116: =IFERROR(VLOOKUP(Table4[[#This Row],[رقم امر الشغل]],table5,10,0),"") -> 
BW117: =IFERROR(VLOOKUP(Table4[[#This Row],[رقم امر الشغل]],table5,9,0),"") ->  | BX117: =IFERROR(VLOOKUP(Table4[[#This Row],[رقم امر الشغل]],table5,10,0),"") -> 
BW118: =IFERROR(VLOOKUP(Table4[[#This Row],[رقم امر الشغل]],table5,9,0),"") ->  | BX118: =IFERROR(VLOOKUP(Table4[[#This Row],[رقم امر الشغل]],table5,10,0),"") -> 
BW119: =IFERROR(VLOOKUP(Table4[[#This Row],[رقم امر الشغل]],table5,9,0),"") ->  | BX119: =IFERROR(VLOOKUP(Table4[[#This Row],[رقم امر الشغل]],table5,10,0),"") -> 
BW120: =IFERROR(VLOOKUP(Table4[[#This Row],[رقم امر الشغل]],table5,9,0),"") ->  | BX120: =IFERROR(VLOOKUP(Table4[[#This Row],[رقم امر الشغل]],table5,10,0),"") -> 
BW121: =IFERROR(VLOOKUP(Table4[[#This Row],[رقم امر الشغل]],table5,9,0),"") ->  | BX121: =IFERROR(VLOOKUP(Table4[[#This Row],[رقم امر الشغل]],table5,10,0),"") -> 
BW122: =IFERROR(VLOOKUP(Table4[[#This Row],[رقم امر الشغل]],table5,9,0),"") ->  | BX122: =IFERROR(VLOOKUP(Table4[[#This Row],[رقم امر الشغل]],table5,10,0),"") -> 
BW123: =IFERROR(VLOOKUP(Table4[[#This Row],[رقم امر الشغل]],table5,9,0),"") ->  | BX123: =IFERROR(VLOOKUP(Table4[[#This Row],[رقم امر الشغل]],table5,10,0),"") -> 
BW124: =IFERROR(VLOOKUP(Table4[[#This Row],[رقم امر الشغل]],table5,9,0),"") ->  | BX124: =IFERROR(VLOOKUP(Table4[[#This Row],[رقم امر الشغل]],table5,10,0),"") -> 
BW125: =IFERROR(VLOOKUP(Table4[[#This Row],[رقم امر الشغل]],table5,9,0),"") ->  | BX125: =IFERROR(VLOOKUP(Table4[[#This Row],[رقم امر الشغل]],table5,10,0),"") -> 
BW126: =IFERROR(VLOOKUP(Table4[[#This Row],[رقم امر الشغل]],table5,9,0),"") ->  | BX126: =IFERROR(VLOOKUP(Table4[[#This Row],[رقم امر الشغل]],table5,10,0),"") -> 
BW127: =IFERROR(VLOOKUP(Table4[[#This Row],[رقم امر الشغل]],table5,9,0),"") ->  | BX127: =IFERROR(VLOOKUP(Table4[[#This Row],[رقم امر الشغل]],table5,10,0),"") -> 
BW128: =IFERROR(VLOOKUP(Table4[[#This Row],[رقم امر الشغل]],table5,9,0),"") ->  | BX128: =IFERROR(VLOOKUP(Table4[[#This Row],[رقم امر الشغل]],table5,10,0),"") -> 
BW129: =IFERROR(VLOOKUP(Table4[[#This Row],[رقم امر الشغل]],table5,9,0),"") ->  | BX129: =IFERROR(VLOOKUP(Table4[[#This Row],[رقم امر الشغل]],table5,10,0),"") -> 
BW130: =IFERROR(VLOOKUP(Table4[[#This Row],[رقم امر الشغل]],table5,9,0),"") ->  | BX130: =IFERROR(VLOOKUP(Table4[[#This Row],[رقم امر الشغل]],table5,10,0),"") -> 
BW131: =IFERROR(VLOOKUP(Table4[[#This Row],[رقم امر الشغل]],table5,9,0),"") ->  | BX131: =IFERROR(VLOOKUP(Table4[[#This Row],[رقم امر الشغل]],table5,10,0),"") -> 
BW132: =IFERROR(VLOOKUP(Table4[[#This Row],[رقم امر الشغل]],table5,9,0),"") ->  | BX132: =IFERROR(VLOOKUP(Table4[[#This Row],[رقم امر الشغل]],table5,10,0),"") -> 
BW133: =IFERROR(VLOOKUP(Table4[[#This Row],[رقم امر الشغل]],table5,9,0),"") ->  | BX133: =IFERROR(VLOOKUP(Table4[[#This Row],[رقم امر الشغل]],table5,10,0),"") -> 
BW134: =IFERROR(VLOOKUP(Table4[[#This Row],[رقم امر الشغل]],table5,9,0),"") ->  | BX134: =IFERROR(VLOOKUP(Table4[[#This Row],[رقم امر الشغل]],table5,10,0),"") -> 
BW135: =IFERROR(VLOOKUP(Table4[[#This Row],[رقم امر الشغل]],table5,9,0),"") ->  | BX135: =IFERROR(VLOOKUP(Table4[[#This Row],[رقم امر الشغل]],table5,10,0),"") -> 
BW136: =IFERROR(VLOOKUP(Table4[[#This Row],[رقم امر الشغل]],table5,9,0),"") ->  | BX136: =IFERROR(VLOOKUP(Table4[[#This Row],[رقم امر الشغل]],table5,10,0),"") -> 
BW137: =IFERROR(VLOOKUP(Table4[[#This Row],[رقم امر الشغل]],table5,9,0),"") ->  | BX137: =IFERROR(VLOOKUP(Table4[[#This Row],[رقم امر الشغل]],table5,10,0),"") -> 
BW138: =IFERROR(VLOOKUP(Table4[[#This Row],[رقم امر الشغل]],table5,9,0),"") ->  | BX138: =IFERROR(VLOOKUP(Table4[[#This Row],[رقم امر الشغل]],table5,10,0),"") -> 
BW139: =IFERROR(VLOOKUP(Table4[[#This Row],[رقم امر الشغل]],table5,9,0),"") ->  | BX139: =IFERROR(VLOOKUP(Table4[[#This Row],[رقم امر الشغل]],table5,10,0),"") -> 
BW140: =IFERROR(VLOOKUP(Table4[[#This Row],[رقم امر الشغل]],table5,9,0),"") ->  | BX140: =IFERROR(VLOOKUP(Table4[[#This Row],[رقم امر الشغل]],table5,10,0),"") -> 
BW141: =IFERROR(VLOOKUP(Table4[[#This Row],[رقم امر الشغل]],table5,9,0),"") ->  | BX141: =IFERROR(VLOOKUP(Table4[[#This Row],[رقم امر الشغل]],table5,10,0),"") -> 
BW142: =IFERROR(VLOOKUP(Table4[[#This Row],[رقم امر الشغل]],table5,9,0),"") ->  | BX142: =IFERROR(VLOOKUP(Table4[[#This Row],[رقم امر الشغل]],table5,10,0),"") -> 
BW143: =IFERROR(VLOOKUP(Table4[[#This Row],[رقم امر الشغل]],table5,9,0),"") ->  | BX143: =IFERROR(VLOOKUP(Table4[[#This Row],[رقم امر الشغل]],table5,10,0),"") -> 
BW144: =IFERROR(VLOOKUP(Table4[[#This Row],[رقم امر الشغل]],table5,9,0),"") ->  | BX144: =IFERROR(VLOOKUP(Table4[[#This Row],[رقم امر الشغل]],table5,10,0),"") -> 
BW145: =IFERROR(VLOOKUP(Table4[[#This Row],[رقم امر الشغل]],table5,9,0),"") ->  | BX145: =IFERROR(VLOOKUP(Table4[[#This Row],[رقم امر الشغل]],table5,10,0),"") -> 
BW146: =IFERROR(VLOOKUP(Table4[[#This Row],[رقم امر الشغل]],table5,9,0),"") ->  | BX146: =IFERROR(VLOOKUP(Table4[[#This Row],[رقم امر الشغل]],table5,10,0),"") -> 
BW147: =IFERROR(VLOOKUP(Table4[[#This Row],[رقم امر الشغل]],table5,9,0),"") ->  | BX147: =IFERROR(VLOOKUP(Table4[[#This Row],[رقم امر الشغل]],table5,10,0),"") -> 
BW148: =IFERROR(VLOOKUP(Table4[[#This Row],[رقم امر الشغل]],table5,9,0),"") ->  | BX148: =IFERROR(VLOOKUP(Table4[[#This Row],[رقم امر الشغل]],table5,10,0),"") -> 
BW149: =IFERROR(VLOOKUP(Table4[[#This Row],[رقم امر الشغل]],table5,9,0),"") ->  | BX149: =IFERROR(VLOOKUP(Table4[[#This Row],[رقم امر الشغل]],table5,10,0),"") -> 
BW150: =IFERROR(VLOOKUP(Table4[[#This Row],[رقم امر الشغل]],table5,9,0),"") ->  | BX150: =IFERROR(VLOOKUP(Table4[[#This Row],[رقم امر الشغل]],table5,10,0),"") -> 
BW151: =IFERROR(VLOOKUP(Table4[[#This Row],[رقم امر الشغل]],table5,9,0),"") ->  | BX151: =IFERROR(VLOOKUP(Table4[[#This Row],[رقم امر الشغل]],table5,10,0),"") -> 
BW152: =IFERROR(VLOOKUP(Table4[[#This Row],[رقم امر الشغل]],table5,9,0),"") ->  | BX152: =IFERROR(VLOOKUP(Table4[[#This Row],[رقم امر الشغل]],table5,10,0),"") -> 
BW153: =IFERROR(VLOOKUP(Table4[[#This Row],[رقم امر الشغل]],table5,9,0),"") ->  | BX153: =IFERROR(VLOOKUP(Table4[[#This Row],[رقم امر الشغل]],table5,10,0),"") -> 
BW154: =IFERROR(VLOOKUP(Table4[[#This Row],[رقم امر الشغل]],table5,9,0),"") ->  | BX154: =IFERROR(VLOOKUP(Table4[[#This Row],[رقم امر الشغل]],table5,10,0),"") ->  | BY154: =IFERROR((BW154-BX154),"") -> 
BW155: =IFERROR(VLOOKUP(Table4[[#This Row],[رقم امر الشغل]],table5,9,0),"") ->  | BX155: =IFERROR(VLOOKUP(Table4[[#This Row],[رقم امر الشغل]],table5,10,0),"") -> 
BW156: =IFERROR(VLOOKUP(Table4[[#This Row],[رقم امر الشغل]],table5,9,0),"") ->  | BX156: =IFERROR(VLOOKUP(Table4[[#This Row],[رقم امر الشغل]],table5,10,0),"") -> 
BW157: =IFERROR(VLOOKUP(Table4[[#This Row],[رقم امر الشغل]],table5,9,0),"") ->  | BX157: =IFERROR(VLOOKUP(Table4[[#This Row],[رقم امر الشغل]],table5,10,0),"") -> 
BW158: =IFERROR(VLOOKUP(Table4[[#This Row],[رقم امر الشغل]],table5,9,0),"") ->  | BX158: =IFERROR(VLOOKUP(Table4[[#This Row],[رقم امر الشغل]],table5,10,0),"") -> 
BW159: =IFERROR(VLOOKUP(Table4[[#This Row],[رقم امر الشغل]],table5,9,0),"") ->  | BX159: =IFERROR(VLOOKUP(Table4[[#This Row],[رقم امر الشغل]],table5,10,0),"") -> 
BW160: =IFERROR(VLOOKUP(Table4[[#This Row],[رقم امر الشغل]],table5,9,0),"") ->  | BX160: =IFERROR(VLOOKUP(Table4[[#This Row],[رقم امر الشغل]],table5,10,0),"") -> 
BW161: =IFERROR(VLOOKUP(Table4[[#This Row],[رقم امر الشغل]],table5,9,0),"") ->  | BX161: =IFERROR(VLOOKUP(Table4[[#This Row],[رقم امر الشغل]],table5,10,0),"") -> 
BW162: =IFERROR(VLOOKUP(Table4[[#This Row],[رقم امر الشغل]],table5,9,0),"") ->  | BX162: =IFERROR(VLOOKUP(Table4[[#This Row],[رقم امر الشغل]],table5,10,0),"") -> 
BW163: =IFERROR(VLOOKUP(Table4[[#This Row],[رقم امر الشغل]],table5,9,0),"") ->  | BX163: =IFERROR(VLOOKUP(Table4[[#This Row],[رقم امر الشغل]],table5,10,0),"") -> 
BW164: =IFERROR(VLOOKUP(Table4[[#This Row],[رقم امر الشغل]],table5,9,0),"") ->  | BX164: =IFERROR(VLOOKUP(Table4[[#This Row],[رقم امر الشغل]],table5,10,0),"") -> 
BW165: =IFERROR(VLOOKUP(Table4[[#This Row],[رقم امر الشغل]],table5,9,0),"") ->  | BX165: =IFERROR(VLOOKUP(Table4[[#This Row],[رقم امر الشغل]],table5,10,0),"") -> 
BW166: =IFERROR(VLOOKUP(Table4[[#This Row],[رقم امر الشغل]],table5,9,0),"") ->  | BX166: =IFERROR(VLOOKUP(Table4[[#This Row],[رقم امر الشغل]],table5,10,0),"") -> 
BW167: =IFERROR(VLOOKUP(Table4[[#This Row],[رقم امر الشغل]],table5,9,0),"") ->  | BX167: =IFERROR(VLOOKUP(Table4[[#This Row],[رقم امر الشغل]],table5,10,0),"") -> 
BW168: =IFERROR(VLOOKUP(Table4[[#This Row],[رقم امر الشغل]],table5,9,0),"") ->  | BX168: =IFERROR(VLOOKUP(Table4[[#This Row],[رقم امر الشغل]],table5,10,0),"") -> 
BW169: =IFERROR(VLOOKUP(Table4[[#This Row],[رقم امر الشغل]],table5,9,0),"") ->  | BX169: =IFERROR(VLOOKUP(Table4[[#This Row],[رقم امر الشغل]],table5,10,0),"") -> 
BW170: =IFERROR(VLOOKUP(Table4[[#This Row],[رقم امر الشغل]],table5,9,0),"") ->  | BX170: =IFERROR(VLOOKUP(Table4[[#This Row],[رقم امر الشغل]],table5,10,0),"") -> 
BW171: =IFERROR(VLOOKUP(Table4[[#This Row],[رقم امر الشغل]],table5,9,0),"") ->  | BX171: =IFERROR(VLOOKUP(Table4[[#This Row],[رقم امر الشغل]],table5,10,0),"") -> 
BW172: =IFERROR(VLOOKUP(Table4[[#This Row],[رقم امر الشغل]],table5,9,0),"") ->  | BX172: =IFERROR(VLOOKUP(Table4[[#This Row],[رقم امر الشغل]],table5,10,0),"") -> 
BW173: =IFERROR(VLOOKUP(Table4[[#This Row],[رقم امر الشغل]],table5,9,0),"") ->  | BX173: =IFERROR(VLOOKUP(Table4[[#This Row],[رقم امر الشغل]],table5,10,0),"") -> 
BW174: =IFERROR(VLOOKUP(Table4[[#This Row],[رقم امر الشغل]],table5,9,0),"") ->  | BX174: =IFERROR(VLOOKUP(Table4[[#This Row],[رقم امر الشغل]],table5,10,0),"") -> 
BW175: =IFERROR(VLOOKUP(Table4[[#This Row],[رقم امر الشغل]],table5,9,0),"") ->  | BX175: =IFERROR(VLOOKUP(Table4[[#This Row],[رقم امر الشغل]],table5,10,0),"") -> 
BW176: =IFERROR(VLOOKUP(Table4[[#This Row],[رقم امر الشغل]],table5,9,0),"") ->  | BX176: =IFERROR(VLOOKUP(Table4[[#This Row],[رقم امر الشغل]],table5,10,0),"") -> 
BW177: =IFERROR(VLOOKUP(Table4[[#This Row],[رقم امر الشغل]],table5,9,0),"") ->  | BX177: =IFERROR(VLOOKUP(Table4[[#This Row],[رقم امر الشغل]],table5,10,0),"") -> 
BW178: =IFERROR(VLOOKUP(Table4[[#This Row],[رقم امر الشغل]],table5,9,0),"") ->  | BX178: =IFERROR(VLOOKUP(Table4[[#This Row],[رقم امر الشغل]],table5,10,0),"") -> 
BW179: =IFERROR(VLOOKUP(Table4[[#This Row],[رقم امر الشغل]],table5,9,0),"") ->  | BX179: =IFERROR(VLOOKUP(Table4[[#This Row],[رقم امر الشغل]],table5,10,0),"") -> 
BW180: =IFERROR(VLOOKUP(Table4[[#This Row],[رقم امر الشغل]],table5,9,0),"") ->  | BX180: =IFERROR(VLOOKUP(Table4[[#This Row],[رقم امر الشغل]],table5,10,0),"") -> 
BW181: =IFERROR(VLOOKUP(Table4[[#This Row],[رقم امر الشغل]],table5,9,0),"") ->  | BX181: =IFERROR(VLOOKUP(Table4[[#This Row],[رقم امر الشغل]],table5,10,0),"") -> 
BW182: =IFERROR(VLOOKUP(Table4[[#This Row],[رقم امر الشغل]],table5,9,0),"") ->  | BX182: =IFERROR(VLOOKUP(Table4[[#This Row],[رقم امر الشغل]],table5,10,0),"") -> 
BW183: =IFERROR(VLOOKUP(Table4[[#This Row],[رقم امر الشغل]],table5,9,0),"") ->  | BX183: =IFERROR(VLOOKUP(Table4[[#This Row],[رقم امر الشغل]],table5,10,0),"") -> 
BW184: =IFERROR(VLOOKUP(Table4[[#This Row],[رقم امر الشغل]],table5,9,0),"") ->  | BX184: =IFERROR(VLOOKUP(Table4[[#This Row],[رقم امر الشغل]],table5,10,0),"") -> 
BW185: =IFERROR(VLOOKUP(Table4[[#This Row],[رقم امر الشغل]],table5,9,0),"") ->  | BX185: =IFERROR(VLOOKUP(Table4[[#This Row],[رقم امر الشغل]],table5,10,0),"") -> 
BW186: =IFERROR(VLOOKUP(Table4[[#This Row],[رقم امر الشغل]],table5,9,0),"") ->  | BX186: =IFERROR(VLOOKUP(Table4[[#This Row],[رقم امر الشغل]],table5,10,0),"") -> 
BW187: =IFERROR(VLOOKUP(Table4[[#This Row],[رقم امر الشغل]],table5,9,0),"") ->  | BX187: =IFERROR(VLOOKUP(Table4[[#This Row],[رقم امر الشغل]],table5,10,0),"") -> 
BW188: =IFERROR(VLOOKUP(Table4[[#This Row],[رقم امر الشغل]],table5,9,0),"") ->  | BX188: =IFERROR(VLOOKUP(Table4[[#This Row],[رقم امر الشغل]],table5,10,0),"") -> 
BW189: =IFERROR(VLOOKUP(Table4[[#This Row],[رقم امر الشغل]],table5,9,0),"") ->  | BX189: =IFERROR(VLOOKUP(Table4[[#This Row],[رقم امر الشغل]],table5,10,0),"") -> 
BW190: =IFERROR(VLOOKUP(Table4[[#This Row],[رقم امر الشغل]],table5,9,0),"") ->  | BX190: =IFERROR(VLOOKUP(Table4[[#This Row],[رقم امر الشغل]],table5,10,0),"") -> 
BW191: =IFERROR(VLOOKUP(Table4[[#This Row],[رقم امر الشغل]],table5,9,0),"") ->  | BX191: =IFERROR(VLOOKUP(Table4[[#This Row],[رقم امر الشغل]],table5,10,0),"") -> 
BW192: =IFERROR(VLOOKUP(Table4[[#This Row],[رقم امر الشغل]],table5,9,0),"") ->  | BX192: =IFERROR(VLOOKUP(Table4[[#This Row],[رقم امر الشغل]],table5,10,0),"") -> 
BW193: =IFERROR(VLOOKUP(Table4[[#This Row],[رقم امر الشغل]],table5,9,0),"") ->  | BX193: =IFERROR(VLOOKUP(Table4[[#This Row],[رقم امر الشغل]],table5,10,0),"") -> 
BW194: =IFERROR(VLOOKUP(Table4[[#This Row],[رقم امر الشغل]],table5,9,0),"") ->  | BX194: =IFERROR(VLOOKUP(Table4[[#This Row],[رقم امر الشغل]],table5,10,0),"") -> 
BW195: =IFERROR(VLOOKUP(Table4[[#This Row],[رقم امر الشغل]],table5,9,0),"") ->  | BX195: =IFERROR(VLOOKUP(Table4[[#This Row],[رقم امر الشغل]],table5,10,0),"") -> 
BW196: =IFERROR(VLOOKUP(Table4[[#This Row],[رقم امر الشغل]],table5,9,0),"") ->  | BX196: =IFERROR(VLOOKUP(Table4[[#This Row],[رقم امر الشغل]],table5,10,0),"") -> 
BW197: =IFERROR(VLOOKUP(Table4[[#This Row],[رقم امر الشغل]],table5,9,0),"") ->  | BX197: =IFERROR(VLOOKUP(Table4[[#This Row],[رقم امر الشغل]],table5,10,0),"") -> 
BW198: =IFERROR(VLOOKUP(Table4[[#This Row],[رقم امر الشغل]],table5,9,0),"") ->  | BX198: =IFERROR(VLOOKUP(Table4[[#This Row],[رقم امر الشغل]],table5,10,0),"") -> 
BW199: =IFERROR(VLOOKUP(Table4[[#This Row],[رقم امر الشغل]],table5,9,0),"") ->  | BX199: =IFERROR(VLOOKUP(Table4[[#This Row],[رقم امر الشغل]],table5,10,0),"") -> 
BW200: =IFERROR(VLOOKUP(Table4[[#This Row],[رقم امر الشغل]],table5,9,0),"") ->  | BX200: =IFERROR(VLOOKUP(Table4[[#This Row],[رقم امر الشغل]],table5,10,0),"") -> 
BW201: =IFERROR(VLOOKUP(Table4[[#This Row],[رقم امر الشغل]],table5,9,0),"") ->  | BX201: =IFERROR(VLOOKUP(Table4[[#This Row],[رقم امر الشغل]],table5,10,0),"") -> 
... 122 more rows

Sheet الطباعه وطبقه حمايه
A6: مسلسل | B6: رقم امر الشغل | C6: الصنف | D6: التاريخ | E6: زنكات | F6: اسم العميل | G6: اسم المصنع | H6: اسم المنتج | I6: عدد الالوان | J6: اسم المورد | K6: مقاس الشيت | M6: الكميه | N6: الكميه الموردة | O6: السعر | P6: الحد الادني | Q6: الاجمالي | R6: زنكات | S6: اجمالي | T6: الاجمالي العام | U6: دفعات | V6: اجمالي مرحل
K7: طول | L7: عرض
A8: =IF(H8<>"",MAX($A$1:A6)+1,"") -> 1 | B8: 3628 | C8: =VLOOKUP($J8,'Database 1'!$B$2:$F$13,5,0) -> يوفي | E8: 6 | F8: =IFERROR(VLOOKUP($B8,table3,5,0),0) ->  | G8: =IFERROR(VLOOKUP($B8,table3,4,0),0) ->  | H8: =IFERROR(VLOOKUP($B8,table3,3,0),0) -> محمد سمير - طقم بهارات الامبراطور كود 7002 | I8: =IFERROR(VLOOKUP($B8,table3,32,0),0) ->  | J8: مورد 1 | K8: 1 | L8: 0.69 | M8: 2000 | N8: 1917 | O8: =VLOOKUP($J8,'Database 1'!$B$2:$E$20,3,0) -> 120 | P8: =VLOOKUP($J8,'Database 1'!$B$2:$E$20,2,0) -> 0 | Q8: =IF($C8="'طباعه ",IF($P8>$M8,$P8*VLOOKUP($J8,'Database 1'!$B$2:$F$20,3,0),$M8*VLOOKUP($J8,'Database 1'!$B$2:$F$20,3,0)),IF($C8="يوفي ",($K8*$L8*$N8*10/7)*VLOOKUP($J8,'Database 1'!$B$2:$F$20,3,0),"")) -> 226753.7143 | R8: =IF($C8="طباعه ",VLOOKUP(J8,'Database 1'!$B$2:$E$20,4,0)*E8,"") ->  | S8: =IFERROR(Q8+R8,"") ->  | V8: =T8-U8 -> 0
A9: =IF(H9<>"",MAX($A$1:A7)+1,"") -> 1 | B9: 3628 | C9: =VLOOKUP($J9,'Database 1'!$B$2:$F$13,5,0) -> يوفي | E9: 6 | H9: محمد سمير - طقم بهارات الامبراطور كود 7002 | J9: مورد 2 | K9: 1 | L9: 0.69 | M9: 2500 | N9: 1917 | P9: =VLOOKUP($J9,'Database 1'!$B$2:$E$20,2,0) -> 0 | Q9: =IF($C9="'طباعه ",IF($P9>$M9,$P9*VLOOKUP($J9,'Database 1'!$B$2:$F$20,3,0),$M9*VLOOKUP($J9,'Database 1'!$B$2:$F$20,3,0)),IF($C9="يوفي ",($K9*$L9*$N9*10/7)*VLOOKUP($J9,'Database 1'!$B$2:$F$20,3,0),"")) -> 226753.7143 | R9: =IF($C9="طباعه ",VLOOKUP(J9,'Database 1'!$B$2:$E$20,4,0)*E9,"") ->  | S9: =IFERROR(Q9+R9,"") ->  | V9: =T9-U9 -> 0
A10: =IF(H10<>"",MAX($A$1:A8)+1,"") -> 2 | B10: 3628 | C10: =VLOOKUP($J10,'Database 1'!$B$2:$F$13,5,0) -> يوفي | E10: 6 | H10: محمد سمير - طقم بهارات الامبراطور كود 7002 | J10: مورد 3 | K10: 1 | L10: 0.69 | M10: 2000 | N10: 1917 | O10: =VLOOKUP($J10,'Database 1'!$B$2:$E$20,3,0) -> 150 | P10: =VLOOKUP($J10,'Database 1'!$B$2:$E$20,2,0) -> 0 | Q10: =IF($C10="'طباعه ",IF($P10>$M10,$P10*VLOOKUP($J10,'Database 1'!$B$2:$F$20,3,0),$M10*VLOOKUP($J10,'Database 1'!$B$2:$F$20,3,0)),IF($C10="يوفي ",($K10*$L10*$N10*10/7)*VLOOKUP($J10,'Database 1'!$B$2:$F$20,3,0),"")) -> 283442.1429 | R10: =IF($C10="طباعه ",VLOOKUP(J10,'Database 1'!$B$2:$E$20,4,0)*E10,"") ->  | V10: 0
A11: =IF(H11<>"",MAX($A$1:A9)+1,"") -> 2 | B11: 3628 | C11: =VLOOKUP($J11,'Database 1'!$B$2:$F$13,5,0) -> طباعه | E11: 6 | H11: محمد سمير - طقم بهارات الامبراطور كود 7002 | J11: مورد 4 | K11: 1 | L11: 0.69 | M11: 2000 | N11: 1917 | O11: =VLOOKUP($J11,'Database 1'!$B$2:$E$20,3,0) -> 40 | P11: =VLOOKUP($J11,'Database 1'!$B$2:$E$20,2,0) -> 5000 | Q11: =IF($C11="'طباعه ",IF($P11>$M11,$P11*VLOOKUP($J11,'Database 1'!$B$2:$F$20,3,0),$M11*VLOOKUP($J11,'Database 1'!$B$2:$F$20,3,0)),IF($C11="يوفي ",($K11*$L11*$N11*10/7)*VLOOKUP($J11,'Database 1'!$B$2:$F$20,3,0),"")) ->  | R11: =IF($C11="طباعه ",VLOOKUP(J11,'Database 1'!$B$2:$E$20,4,0)*E11,"") -> 1050 | V11: 0
A12: =IF(H12<>"",MAX($A$1:A10)+1,"") -> 3 | B12: 3628 | C12: =VLOOKUP($J12,'Database 1'!$B$2:$F$13,5,0) -> يوفي | E12: 6 | H12: محمد سمير - طقم بهارات الامبراطور كود 7002 | J12: مورد 1 | K12: 1 | L12: 0.69 | M12: 2000 | N12: 1917 | O12: =VLOOKUP($J12,'Database 1'!$B$2:$E$20,3,0) -> 120 | P12: =VLOOKUP($J12,'Database 1'!$B$2:$E$20,2,0) -> 0 | Q12: =IF($C12="'طباعه ",IF($P12>$M12,$P12*VLOOKUP($J12,'Database 1'!$B$2:$F$20,3,0),$M12*VLOOKUP($J12,'Database 1'!$B$2:$F$20,3,0)),IF($C12="يوفي ",($K12*$L12*$N12*10/7)*VLOOKUP($J12,'Database 1'!$B$2:$F$20,3,0),"")) -> 226753.7143 | R12: =IF($C12="طباعه ",VLOOKUP(J12,'Database 1'!$B$2:$E$20,4,0)*E12,"") ->  | S12: =IFERROR(Q12+R12,"") ->  | V12: 0
A13: =IF(H13<>"",MAX($A$1:A11)+1,"") -> 3 | B13: 3628 | C13: =VLOOKUP($J13,'Database 1'!$B$2:$F$13,5,0) -> يوفي | E13: 6 | H13: محمد سمير - طقم بهارات الامبراطور كود 7002 | J13: مورد 1 | K13: 1 | L13: 0.69 | M13: 2000 | N13: 1917 | O13: =VLOOKUP($J13,'Database 1'!$B$2:$E$20,3,0) -> 120 | P13: =VLOOKUP($J13,'Database 1'!$B$2:$E$20,2,0) -> 0 | Q13: =IF($C13="'طباعه ",IF($P13>$M13,$P13*VLOOKUP($J13,'Database 1'!$B$2:$F$20,3,0),$M13*VLOOKUP($J13,'Database 1'!$B$2:$F$20,3,0)),IF($C13="يوفي ",($K13*$L13*$N13*10/7)*VLOOKUP($J13,'Database 1'!$B$2:$F$20,3,0),"")) -> 226753.7143 | R13: =IF($C13="طباعه ",VLOOKUP(J13,'Database 1'!$B$2:$E$20,4,0)*E13,"") -> 
A14: =IF(H14<>"",MAX($A$1:A12)+1,"") -> 4 | B14: 3628 | C14: =VLOOKUP($J14,'Database 1'!$B$2:$F$13,5,0) -> طباعه | E14: 6 | H14: محمد سمير - طقم بهارات الامبراطور كود 7002 | J14: مورد 8 | K14: 1 | L14: 0.69 | M14: 2000 | N14: 1917 | O14: =VLOOKUP($J14,'Database 1'!$B$2:$E$20,3,0) -> 1.1 | P14: =VLOOKUP($J14,'Database 1'!$B$2:$E$20,2,0) -> 10000 | Q14: =IF($C14="'طباعه ",IF($P14>$M14,$P14*VLOOKUP($J14,'Database 1'!$B$2:$F$20,3,0),$M14*VLOOKUP($J14,'Database 1'!$B$2:$F$20,3,0)),IF($C14="يوفي ",($K14*$L14*$N14*10/7)*VLOOKUP($J14,'Database 1'!$B$2:$F$20,3,0),"")) ->  | R14: =IF($C14="طباعه ",VLOOKUP(J14,'Database 1'!$B$2:$E$20,4,0)*E14,"") -> 3000
A15: =IF(H15<>"",MAX($A$1:A13)+1,"") -> 
A16: =IF(H16<>"",MAX($A$1:A14)+1,"") -> 
A17: =IF(H17<>"",MAX($A$1:A15)+1,"") -> 
A18: =IF(H18<>"",MAX($A$1:A16)+1,"") -> 
A19: =IF(H19<>"",MAX($A$1:A17)+1,"") -> 
A20: =IF(H20<>"",MAX($A$1:A18)+1,"") -> 
A21: =IF(H21<>"",MAX($A$1:A19)+1,"") -> 
A22: =IF(H22<>"",MAX($A$1:A20)+1,"") -> 
A23: =IF(H23<>"",MAX($A$1:A21)+1,"") -> 
A24: =IF(H24<>"",MAX($A$1:A22)+1,"") -> 
A25: =IF(H25<>"",MAX($A$1:A23)+1,"") -> 
A26: =IF(H26<>"",MAX($A$1:A24)+1,"") -> 
A27: =IF(H27<>"",MAX($A$1:A25)+1,"") -> 
A28: =IF(H28<>"",MAX($A$1:A26)+1,"") ->  | Q28: في حاله وجود كلمه طباعه في خليه c المعادله لاتعمل
A29: =IF(H29<>"",MAX($A$1:A27)+1,"") -> 
A30: =IF(H30<>"",MAX($A$1:A28)+1,"") -> 
A31: =IF(H31<>"",MAX($A$1:A29)+1,"") -> 
A32: =IF(H32<>"",MAX($A$1:A30)+1,"") -> 
A33: =IF(H33<>"",MAX($A$1:A31)+1,"") -> 
A34: =IF(H34<>"",MAX($A$1:A32)+1,"") -> 
A35: =IF(H35<>"",MAX($A$1:A33)+1,"") -> 
A36: =IF(H36<>"",MAX($A$1:A34)+1,"") -> 
A37: =IF(H37<>"",MAX($A$1:A35)+1,"") -> 
A38: =IF(H38<>"",MAX($A$1:A36)+1,"") -> 
A39: =IF(H39<>"",MAX($A$1:A37)+1,"") -> 
A40: =IF(H40<>"",MAX($A$1:A38)+1,"") -> 
A41: =IF(H41<>"",MAX($A$1:A39)+1,"") -> 
A42: =IF(H42<>"",MAX($A$1:A40)+1,"") -> 
A43: =IF(H43<>"",MAX($A$1:A41)+1,"") -> 
A44: =IF(H44<>"",MAX($A$1:A42)+1,"") -> 
A45: =IF(H45<>"",MAX($A$1:A43)+1,"") -> 
A46: =IF(H46<>"",MAX($A$1:A44)+1,"") -> 
A47: =IF(H47<>"",MAX($A$1:A45)+1,"") -> 
A48: =IF(H48<>"",MAX($A$1:A46)+1,"") -> 
